bitfinex/quotes_BTCUSD_20241205
["timestamp","ask_amount","ask_price","bid_price","bid_amount"]
[1733371037605,7.44004672,103000.0,102990.0,0.11586012]
[1733371038043,7.26504671,103000.0,102990.0,0.11586012]
[1733371038250,7.26504671,103000.0,102990.0,0.087387]
[1733371039333,7.26504671,103000.0,102980.0,0.087388]
[1733371039556,7.26504671,103000.0,102990.0,0.087387]
[1733371040214,7.26654671,103000.0,102990.0,0.18706305]
[1733371041197,7.1498181,103000.0,102990.0,0.46676305]
[1733371041409,3.52491264,103000.0,102990.0,0.49035438]
[1733371041626,0.0015,103000.0,102990.0,0.49035438]
[1733371041857,0.0008694,103040.0,103030.0,0.087353]
[1733371042070,0.00104584,103040.0,103030.0,0.18874662]
[1733371042735,0.00104584,103040.0,103030.0,0.087353]
[1733371042959,0.436732,103080.0,103030.0,0.087353]
[1733371043182,0.09967605,103070.0,103030.0,0.1747]
[1733371043397,0.48778905,103070.0,103030.0,0.087347]
[1733371043615,0.68184705,103070.0,103030.0,0.087347]
[1733371043831,0.48778905,103070.0,103030.0,0.174695]
[1733371044304,0.09967605,103070.0,103040.0,0.174683]
[1733371044515,0.2818444,103080.0,103050.0,0.087336]
[1733371044729,0.38152045,103080.0,103050.0,0.087336]
[1733371045158,0.09967605,103070.0,103040.0,0.087339]
[1733371045379,1.5,103040.0,103030.0,0.174693]
[1733371045617,1.5,103040.0,103030.0,0.18702905]
[1733371045837,0.29371905,103070.0,103040.0,0.077638]
[1733371046061,0.37543005,103070.0,103020.0,0.1553]
[1733371046279,1.5,103040.0,103020.0,0.25497605]
[1733371046497,0.388149,103060.0,103000.0,0.187373]
[1733371046720,0.48782505,103060.0,103020.0,0.07782544]
[1733371046982,0.48800146,103060.0,103010.0,0.17733505]
[1733371047208,0.68207746,103060.0,103020.0,0.077654]
[1733371047428,1.5,103020.0,103010.0,0.09967605]
[1733371047857,0.29375105,103060.0,103030.0,0.1]
[1733371048079,0.0825697,103070.0,103040.0,0.077639]
[1733371048299,0.18224575,103070.0,103050.0,0.077627]
[1733371048523,0.18224575,103070.0,103040.0,0.077635]
[1733371048741,0.18242219,103070.0,103040.0,0.155269]
[1733371049196,0.18242219,103070.0,103040.0,0.155268]
[1733371050321,0.24819185,103070.0,103040.0,0.077634]
[1733371050779,0.18242219,103070.0,103040.0,0.155269]
[1733371050996,0.18242219,103070.0,103030.0,0.15161662]
[1733371051216,0.18242219,103070.0,103050.0,0.077627]
[1733371051645,0.18242219,103070.0,103050.0,0.155258]
[1733371051826,0.18242219,103070.0,103040.0,0.07935362]
[1733371052100,0.18242219,103070.0,103050.0,0.155257]
[1733371052532,0.18242219,103070.0,103050.0,0.232888]
[1733371052761,0.18242219,103070.0,103050.0,0.155257]
[1733371052980,0.18242219,103070.0,103050.0,0.232884]
[1733371053242,0.00017644,103070.0,103050.0,0.232884]
[1733371053449,0.00017644,103070.0,103050.0,0.077626]
[1733371053684,0.00017644,103070.0,103050.0,0.155253]
[1733371054745,0.00017644,103070.0,103050.0,0.077626]
[1733371054959,0.00017644,103070.0,103050.0,0.155257]
[1733371055163,0.00017644,103070.0,103050.0,0.155253]
[1733371055594,10.00017644,103070.0,103060.0,0.1]
[1733371055819,10.00017644,103070.0,103050.0,0.155253]
[1733371056028,1.5,103060.0,103050.0,0.155253]
[1733371056239,10.00017644,103070.0,103050.0,0.155253]
[1733371056449,9.99503467,103070.0,103050.0,0.145549]
[1733371058025,9.99503467,103070.0,103060.0,0.038784]
[1733371058265,9.99503467,103070.0,103050.0,0.145549]
[1733371058512,9.99503467,103070.0,103050.0,0.135847]
[1733371058752,9.82003466,103070.0,103060.0,0.067921]
[1733371059007,9.82003466,103070.0,103050.0,0.135847]
[1733371059008,9.81977516,103070.0,103050.0,0.135851]
[1733371059495,0.0457,103050.0,103040.0,0.0017382]
[1733371059729,0.14537605,103050.0,103040.0,0.03210424]
[1733371059977,0.194105,103040.0,103010.0,0.135908]
[1733371060192,0.0457,103050.0,103020.0,0.09967605]
[1733371060404,0.14537605,103050.0,103000.0,0.147961]
[1733371060611,0.35198705,103050.0,103010.0,0.23557405]
[1733371060847,0.54608005,103050.0,103010.0,0.23557405]
[1733371061035,0.74017405,103050.0,103010.0,0.16762405]
[1733371061204,0.52808004,103050.0,103010.0,0.23557305]
[1733371061414,0.52807804,103050.0,103020.0,0.067947]
[1733371061616,0.48788605,103040.0,103010.0,0.135901]
[1733371061995,0.48788605,103040.0,103010.0,0.067948]
[1733371062216,0.29377605,103040.0,103010.0,0.135898]
[1733371062389,0.29377605,103040.0,103010.0,0.067948]
[1733371062599,0.09967605,103040.0,103020.0,0.067947]
[1733371062800,0.194061,103060.0,103020.0,0.13589]
[1733371063029,0.194099,103040.0,103000.0,0.067955]
[1733371063227,0.29377505,103040.0,103000.0,0.09967605]
[1733371063443,0.48788805,103040.0,103010.0,0.067949]
[1733371063664,0.68200305,103040.0,103010.0,0.067949]
[1733371063877,0.48788805,103040.0,103010.0,0.067949]
[1733371064478,0.48788805,103040.0,103000.0,0.30354405]
[1733371064697,0.48788705,103040.0,103010.0,0.067954]
[1733371065103,0.68200305,103040.0,103010.0,0.067954]
[1733371065336,0.48788705,103040.0,103010.0,0.067954]
[1733371065477,0.48788705,103040.0,103010.0,0.135908]
[1733371065671,0.48788705,103040.0,103000.0,0.23558705]
[1733371065672,0.194119,103030.0,103000.0,0.23558705]
[1733371065877,0.0493,103030.0,103010.0,60.0]
[1733371066108,0.24342,103030.0,103010.0,0.067954]
[1733371066325,1.5,103010.0,103000.0,0.16763105]
[1733371066522,1.5,103010.0,103000.0,0.135915]
[1733371066807,0.435539,103030.0,103000.0,0.13609144]
[1733371067033,0.435539,103030.0,103000.0,0.06813144]
[1733371067257,0.241419,103030.0,103000.0,0.13608844]
[1733371067444,0.241419,103030.0,103010.0,0.067954]
[1733371067585,0.241419,103030.0,103000.0,0.13608844]
[1733371067811,0.52700529,103040.0,103000.0,0.20404444]
[1733371068026,0.33288829,103040.0,103000.0,0.20404444]
[1733371068237,0.194138,103020.0,103010.0,0.038802]
[1733371068462,0.48796505,103020.0,103010.0,0.038802]
[1733371068876,0.194155,103010.0,103000.0,0.00017644]
[1733371069074,0.194155,103010.0,102990.0,0.0017394]
[1733371069075,0.194174,103000.0,102990.0,0.0017394]
[1733371069419,0.29385005,103000.0,102990.0,0.00191587]
[1733371071610,0.30850561,103020.0,102990.0,0.06988287]
[1733371071831,0.40818166,103020.0,102990.0,0.13784587]
[1733371072036,9.99808413,102990.0,102980.0,0.135941]
[1733371072314,9.82308412,102990.0,102980.0,0.135941]
[1733371072536,9.82308412,102990.0,102980.0,0.23561705]
[1733371072935,9.2778884,102990.0,102980.0,0.23561705]
[1733371073349,9.2778884,102990.0,102980.0,0.38561705]
[1733371078022,9.00579339,102990.0,102980.0,0.74346966]
[1733371078184,8.75449339,102990.0,102980.0,0.69666966]
[1733371078817,8.69623639,102990.0,102980.0,0.69666966]
[1733371079250,8.65739839,102990.0,102980.0,0.69666966]
[1733371079896,8.61856039,102990.0,102980.0,0.69666966]
[1733371081038,8.57972239,102990.0,102980.0,0.69666966]
[1733371081243,8.52146539,102990.0,102980.0,0.69666966]
[1733371081627,8.48262739,102990.0,102980.0,0.69666966]
[1733371081846,8.42437039,102990.0,102980.0,0.69666966]
[1733371082273,8.33757039,102990.0,102980.0,0.68051036]
[1733371082553,8.24047539,102990.0,102980.0,0.68051036]
[1733371082987,8.06547538,102990.0,102980.0,0.68051036]
[1733371083418,8.04605638,102990.0,102980.0,0.68051036]
[1733371083616,0.00217425,103020.0,103010.0,0.1]
[1733371083842,0.08257425,103020.0,103010.0,0.34910045]
[1733371084052,0.08257425,103020.0,103010.0,0.31763005]
[1733371084474,0.13227425,103020.0,103010.0,0.15]
[1733371084671,0.13227425,103020.0,103010.0,0.188798]
[1733371084893,1.5,103010.0,102990.0,0.067963]
[1733371085142,0.1301,103000.0,102990.0,0.13593]
[1733371085346,0.28227425,103020.0,103010.0,0.067954]
[1733371085564,0.28227425,103020.0,103010.0,0.16763005]
[1733371085775,0.28227425,103020.0,103010.0,0.16934814]
[1733371085989,0.28227425,103020.0,103010.0,0.16763005]
[1733371086226,0.28227425,103020.0,103010.0,0.067954]
[1733371087694,1.5,103010.0,103000.0,0.116495]
[1733371087996,0.28227425,103020.0,103010.0,0.058246]
[1733371088202,0.28227425,103020.0,103000.0,0.174744]
[1733371088394,0.28227425,103020.0,103000.0,0.116495]
[1733371088599,0.28227425,103020.0,102990.0,0.05997031]
[1733371088805,0.1297,103010.0,102990.0,0.116506]
[1733371089579,0.42353305,103010.0,102980.0,0.2099988]
[1733371089780,0.61770105,103010.0,102980.0,0.2099988]
[1733371090013,0.0765,103000.0,102980.0,0.2100008]
[1733371090197,0.0765,103000.0,102980.0,0.2682608]
[1733371090395,0.0765,103000.0,102980.0,0.3265208]
[1733371091444,0.0765,103000.0,102980.0,0.2682588]
[1733371091633,0.0458,102990.0,102980.0,0.2682588]
[1733371093284,0.0458,102990.0,102980.0,0.2099988]
[1733371093506,10.0458,102990.0,102980.0,0.2099988]
[1733371094613,10.0458,102990.0,102980.0,0.0017388]
[1733371094980,10.0458,102990.0,102980.0,0.0600018]
[1733371096069,10.08449336,102990.0,102980.0,0.0600018]
[1733371096499,10.0,102990.0,102980.0,0.16139658]
[1733371096708,10.0,102990.0,102980.0,0.23120378]
[1733371096972,9.61168942,102980.0,102970.0,0.197074]
[1733371097179,9.61168942,102980.0,102970.0,0.22687726]
[1733371097612,9.59226842,102980.0,102970.0,0.16603955]
[1733371097860,9.71316842,102980.0,102970.0,0.12687726]
[1733371098077,9.53816841,102980.0,102970.0,0.097074]
[1733371098292,9.41726841,102980.0,102970.0,0.22827728]
[1733371098510,9.41726841,102980.0,102970.0,0.22655847]
[1733371100012,9.41738242,102980.0,102970.0,0.22655847]
[1733371100425,9.41738242,102980.0,102970.0,0.09967605]
[1733371100861,9.41738242,102980.0,102970.0,0.15794005]
[1733371102392,0.08148353,102970.0,102960.0,0.116541]
[1733371102622,9.62776595,102980.0,102970.0,0.058269]
[1733371102888,9.41738242,102980.0,102970.0,0.05998778]
[1733371103095,9.24238241,102980.0,102970.0,0.15966383]
[1733371103309,9.24238241,102980.0,102970.0,0.18950351]
[1733371103519,9.10643541,102980.0,102970.0,0.23921021]
[1733371103729,8.38697241,102980.0,102970.0,0.27479143]
[1733371103946,8.38697241,102980.0,102970.0,0.2436012]
[1733371104809,8.32870941,102980.0,102970.0,0.2436012]
[1733371105021,8.28986741,102980.0,102970.0,0.2436012]
[1733371106119,8.28986741,102980.0,102970.0,0.22508473]
[1733371106342,8.27436741,102980.0,102970.0,0.18778473]
[1733371106789,8.27436741,102980.0,102970.0,0.19124288]
[1733371106998,8.27436741,102980.0,102970.0,0.18952433]
[1733371107210,8.27436741,102980.0,102970.0,0.229145]
[1733371107415,8.0993674,102980.0,102970.0,0.229145]
[1733371109632,8.1803674,102980.0,102970.0,0.229145]
[1733371110056,8.1803674,102980.0,102970.0,0.19930532]
[1733371110486,8.1803674,102980.0,102970.0,0.22918636]
[1733371110688,8.0993674,102980.0,102970.0,0.24770283]
[1733371110909,8.0993674,102980.0,102970.0,0.22918636]
[1733371112219,8.0411044,102980.0,102970.0,0.24770283]
[1733371112442,8.0022624,102980.0,102970.0,0.24770283]
[1733371112671,7.9051574,102980.0,102970.0,0.28500283]
[1733371112906,7.73015739,102980.0,102970.0,0.28363834]
[1733371113576,7.67189439,102980.0,102970.0,0.30625224]
[1733371113718,7.63305239,102980.0,102970.0,0.28363834]
[1733371114546,7.53594739,102980.0,102970.0,0.28363834]
[1733371114748,7.41475141,102980.0,102970.0,0.30625224]
[1733371115545,7.35648841,102980.0,102970.0,0.30625224]
[1733371115791,7.31764641,102980.0,102970.0,0.26512187]
[1733371116001,7.31764641,102980.0,102970.0,0.28363834]
[1733371116213,7.31764641,102980.0,102970.0,0.3081689]
[1733371116627,7.23996241,102980.0,102970.0,0.28363834]
[1733371116833,7.22054141,102980.0,102970.0,0.28363834]
[1733371117061,7.22054141,102980.0,102970.0,0.26512187]
[1733371117690,7.22054141,102980.0,102970.0,0.28363834]
[1733371117913,7.0455414,102980.0,102970.0,0.22782187]
[1733371118965,7.0455414,102980.0,102970.0,0.07124131]
[1733371118966,7.1218414,102980.0,102970.0,0.07124131]
[1733371119185,7.1227112,102980.0,102970.0,0.12951031]
[1733371119633,10.08235333,102990.0,102980.0,0.8772888]
[1733371119856,10.0008698,102990.0,102980.0,0.97696485]
[1733371120061,10.0008698,102990.0,102980.0,1.02551785]
[1733371120318,10.0008698,102990.0,102980.0,1.17551785]
[1733371122656,10.0008698,102990.0,102980.0,1.0758418]
[1733371122862,10.0771698,102990.0,102980.0,1.0758418]
[1733371123067,9.90216979,102990.0,102980.0,1.0758418]
[1733371123324,9.90216979,102990.0,102980.0,1.17551785]
[1733371124361,9.90216979,102990.0,102980.0,1.0758418]
[1733371126939,9.98365332,102990.0,102980.0,1.0758418]
[1733371127151,10.14864584,102990.0,102980.0,1.0272888]
[1733371127761,10.03045332,102990.0,102980.0,1.0661308]
[1733371127969,9.85545331,102990.0,102980.0,1.0661308]
[1733371128570,9.97364583,102990.0,102980.0,1.0661308]
[1733371128785,9.97364583,102990.0,102980.0,1.0272888]
[1733371129413,9.87364583,102990.0,102980.0,1.0661308]
[1733371129648,10.05512936,102990.0,102980.0,1.0661308]
[1733371129859,9.77396978,102990.0,102980.0,1.0661308]
[1733371130071,9.85545331,102990.0,102980.0,1.0661308]
[1733371130277,9.01535273,102980.0,102970.0,0.04069661]
[1733371130963,9.01535273,102980.0,102970.0,0.04241538]
[1733371131185,9.01535273,102980.0,102970.0,0.04069661]
[1733371133132,8.84035272,102980.0,102970.0,0.04069661]
[1733371135379,8.84035272,102980.0,102970.0,0.04241538]
[1733371135836,8.84035272,102980.0,102970.0,0.04069661]
[1733371137389,8.84035272,102980.0,102970.0,0.04241538]
[1733371138039,8.66535271,102980.0,102970.0,0.04241538]
[1733371138261,8.58386918,102980.0,102970.0,0.04241538]
[1733371138521,8.58386918,102980.0,102970.0,0.13256053]
[1733371139179,8.58386918,102980.0,102970.0,0.13084176]
[1733371140270,8.58386918,102980.0,102970.0,0.13256039]
[1733371140489,8.58386918,102980.0,102970.0,0.13084176]
[1733371140921,8.58386918,102980.0,102970.0,0.16431613]
[1733371141353,8.58386918,102980.0,102970.0,0.16603476]
[1733371142431,8.58386918,102980.0,102970.0,0.19598294]
[1733371143126,8.40886917,102980.0,102970.0,0.19598294]
[1733371143581,8.40886917,102980.0,102970.0,0.16605573]
[1733371144209,8.40886917,102980.0,102970.0,0.06637968]
[1733371144419,8.5664527,102980.0,102970.0,0.065771]
[1733371146722,8.68464522,102980.0,102970.0,0.065771]
[1733371147378,8.50964521,102980.0,102970.0,0.065771]
[1733371148977,8.30996916,102980.0,102970.0,0.065771]
[1733371149191,8.39145269,102980.0,102970.0,0.06748992]
[1733371149401,8.39145269,102980.0,102970.0,0.03693289]
[1733371149612,8.39145269,102980.0,102970.0,0.03521397]
[1733371149829,8.39133561,102980.0,102970.0,0.07405697]
[1733371150068,8.39133561,102980.0,102970.0,0.07577569]
[1733371152068,8.39133561,102980.0,102970.0,0.07405697]
[1733371152282,8.2163356,102980.0,102970.0,0.07405697]
[1733371152777,8.3163356,102980.0,102970.0,0.07405697]
[1733371154735,8.2163356,102980.0,102970.0,0.07405697]
[1733371154947,8.3163356,102980.0,102970.0,0.07405697]
[1733371155457,8.3172036,102980.0,102970.0,0.07405697]
[1733371155678,0.3172036,102980.0,102960.0,0.0363934]
[1733371155903,0.3172036,102980.0,102960.0,0.03870171]
[1733371156135,0.08148353,102970.0,102960.0,0.07754877]
[1733371156600,0.13572007,102980.0,102970.0,0.038846]
[1733371156810,0.23572007,102980.0,102970.0,0.038846]
[1733371157031,9.76201351,102950.0,102940.0,0.01519485]
[1733371157268,9.58760174,102950.0,102940.0,0.1537279]
[1733371157495,9.58760174,102950.0,102940.0,0.22262508]
[1733371157733,9.50989374,102950.0,102940.0,0.22767103]
[1733371160347,9.49046674,102950.0,102940.0,0.22767103]
[1733371160560,9.33505074,102950.0,102940.0,0.2461875]
[1733371160766,9.31562374,102950.0,102940.0,0.2461875]
[1733371161225,9.31562374,102950.0,102940.0,0.22767103]
[1733371161412,9.30926778,102950.0,102940.0,0.2461875]
[1733371161681,9.23155978,102950.0,102940.0,0.2834875]
[1733371161891,9.21213278,102950.0,102940.0,0.2834875]
[1733371162097,9.20948619,102950.0,102940.0,0.2834875]
[1733371163178,8.93735118,102950.0,102940.0,0.2834875]
[1733371163600,8.85964318,102950.0,102940.0,0.2834875]
[1733371163843,8.84021618,102950.0,102940.0,0.2834875]
[1733371164559,8.78193518,102950.0,102940.0,0.2834875]
[1733371164772,8.74308118,102950.0,102940.0,0.2834875]
[1733371164988,8.74308118,102950.0,102940.0,0.3598875]
[1733371164989,8.71926593,102950.0,102940.0,0.3598875]
[1733371165210,8.65384267,102950.0,102940.0,0.38313188]
[1733371165440,8.65384267,102950.0,102940.0,0.3598875]
[1733371165665,8.55670767,102950.0,102940.0,0.3598875]
[1733371165880,8.43547316,102950.0,102940.0,0.3598875]
[1733371166306,8.43547316,102950.0,102940.0,0.38313188]
[1733371166520,8.41604616,102950.0,102940.0,0.3598875]
[1733371166734,8.24546373,102950.0,102940.0,0.2834875]
[1733371166973,8.24546373,102950.0,102940.0,0.30673188]
[1733371166974,8.20403525,102950.0,102940.0,0.30673188]
[1733371167197,8.19626669,102950.0,102940.0,0.30673188]
[1733371167420,8.19626669,102950.0,102940.0,0.2834875]
[1733371167648,8.11855869,102950.0,102940.0,0.2834875]
[1733371167862,8.09913169,102950.0,102940.0,0.2652239]
[1733371168088,7.92413168,102950.0,102940.0,0.2652239]
[1733371168578,7.86585068,102950.0,102940.0,0.2652239]
[1733371168834,7.82699668,102950.0,102940.0,0.2652239]
[1733371169501,7.74928868,102950.0,102940.0,0.2652239]
[1733371169980,7.72986168,102950.0,102940.0,0.2652239]
[1733371170192,7.72986168,102950.0,102940.0,1.04118964]
[1733371170633,7.63272668,102950.0,102940.0,1.04118964]
[1733371171065,7.63272668,102950.0,102940.0,0.2652239]
[1733371171519,7.61329968,102950.0,102940.0,0.2652239]
[1733371171733,2.4e-07,102950.0,102940.0,0.2652239]
[1733371173103,0.0759,102970.0,102960.0,0.029137]
[1733371173310,0.0759,102970.0,102960.0,0.15890023]
[1733371173540,9.73235331,102990.0,102980.0,8.024432]
[1733371173750,9.65086978,102990.0,102980.0,8.05451918]
[1733371174195,9.65086978,102990.0,102980.0,8.08365018]
[1733371174411,9.75054583,102990.0,102980.0,7.79831918]
[1733371174624,9.77641804,102990.0,102980.0,7.640132]
[1733371174835,9.75054583,102990.0,102980.0,7.669263]
[1733371175496,9.75054583,102990.0,102980.0,7.640132]
[1733371175720,9.75054583,102990.0,102980.0,7.659553]
[1733371176657,9.93184583,102990.0,102980.0,7.659553]
[1733371176888,9.83216978,102990.0,102980.0,7.659553]
[1733371177976,9.83216978,102990.0,102980.0,7.68965095]
[1733371179292,9.83216978,102990.0,102980.0,7.67022995]
[1733371179293,9.65716977,102990.0,102980.0,7.67022995]
[1733371179507,9.65716977,102990.0,102980.0,7.68965095]
[1733371179766,9.65684582,102990.0,102980.0,7.640132]
[1733371179982,9.65716977,102990.0,102980.0,7.659553]
[1733371180198,9.65716977,102990.0,102980.0,7.68964723]
[1733371181330,9.65684582,102990.0,102980.0,7.68964723]
[1733371181766,9.65684582,102990.0,102980.0,7.659553]
[1733371183070,9.48184581,102990.0,102980.0,7.659553]
[1733371184643,9.48184581,102990.0,102980.0,7.640132]
[1733371185737,9.51184581,102990.0,102980.0,7.640132]
[1733371186642,9.51184581,102990.0,102980.0,7.659553]
[1733371187972,9.3368458,102990.0,102980.0,7.659553]
[1733371188456,9.3368458,102990.0,102980.0,7.640132]
[1733371188911,9.3368458,102990.0,102980.0,1.640132]
[1733371189148,9.5310388,102990.0,102980.0,1.640132]
[1733371189370,9.4497388,102990.0,102980.0,1.383932]
[1733371189588,9.4843388,102990.0,102980.0,1.383932]
[1733371192070,9.4832388,102990.0,102980.0,1.3856678]
[1733371192483,9.5832388,102990.0,102980.0,1.3856678]
[1733371192897,9.40823879,102990.0,102980.0,1.3856678]
[1733371193119,9.30823879,102990.0,102980.0,1.3856678]
[1733371193329,9.40823879,102990.0,102980.0,1.3856678]
[1733371193534,9.30823879,102990.0,102980.0,1.3856678]
[1733371193755,9.40823879,102990.0,102980.0,1.3856678]
[1733371193962,0.03,102970.0,102960.0,0.15]
[1733371194166,0.13182498,102970.0,102960.0,0.15]
[1733371194592,0.32605598,102970.0,102960.0,0.15]
[1733371194800,0.32390705,102970.0,102960.0,0.15]
[1733371195221,0.32390705,102970.0,102940.0,0.0017364]
[1733371195222,0.03,102950.0,102940.0,0.0017364]
[1733371195434,0.3260945,102950.0,102940.0,0.00232464]
[1733371195651,0.32394505,102950.0,102940.0,0.00232464]
[1733371196090,0.12967605,102950.0,102940.0,0.00232464]
[1733371196302,0.13182541,102950.0,102940.0,0.00232464]
[1733371196511,0.32609441,102950.0,102940.0,0.00232464]
[1733371196731,0.32394505,102950.0,102940.0,0.00232464]
[1733371197647,0.12967605,102950.0,102940.0,0.00232464]
[1733371197846,0.32609441,102950.0,102940.0,0.00232464]
[1733371198054,0.03,102950.0,102940.0,0.03232464]
[1733371198272,0.03128833,102950.0,102940.0,0.03232464]
[1733371198703,0.11148353,102950.0,102940.0,0.05304354]
[1733371198966,0.11148353,102950.0,102940.0,0.05175264]
[1733371199179,0.11148353,102950.0,102940.0,0.05347187]
[1733371199428,0.11148353,102950.0,102940.0,0.05175264]
[1733371200078,0.21148353,102950.0,102940.0,0.03232464]
[1733371200324,0.21107186,102950.0,102940.0,0.05175264]
[1733371200953,0.12958833,102950.0,102940.0,0.02232464]
[1733371201161,0.20978353,102950.0,102940.0,0.02232464]
[1733371201375,0.12958833,102950.0,102940.0,0.14712464]
[1733371201592,0.12958833,102950.0,102940.0,0.16655264]
[1733371202247,0.0283,102950.0,102940.0,0.16827198]
[1733371202462,0.10978353,102950.0,102940.0,0.16827198]
[1733371202901,0.10978353,102950.0,102940.0,0.26794803]
[1733371203113,0.06607185,102980.0,102970.0,0.02232464]
[1733371203346,0.06607185,102980.0,102970.0,0.04174764]
[1733371203795,0.06607185,102980.0,102970.0,0.17136642]
[1733371203796,0.03,102980.0,102970.0,0.17136642]
[1733371204007,0.03,102980.0,102970.0,0.27104247]
[1733371204217,0.03,102980.0,102970.0,0.26932369]
[1733371204218,0.01,102980.0,102970.0,0.26932369]
[1733371204424,9.10086974,102990.0,102980.0,0.21415279]
[1733371204638,8.95335074,102990.0,102980.0,0.39537798]
[1733371204859,8.49257474,102990.0,102980.0,0.47798205]
[1733371205065,8.41667474,102990.0,102980.0,0.39758205]
[1733371205290,8.41165474,102990.0,102980.0,0.20608802]
[1733371205495,8.30339774,102990.0,102980.0,0.21608802]
[1733371205706,8.17202834,102990.0,102980.0,0.21608802]
[1733371205920,8.10884355,102990.0,102980.0,0.21608802]
[1733371206160,8.00615668,102990.0,102980.0,0.99152717]
[1733371206375,7.97885396,102990.0,102980.0,1.02096439]
[1733371206727,7.97885396,102990.0,102980.0,0.99152717]
[1733371206728,7.92059696,102990.0,102980.0,0.99152717]
[1733371206821,7.88175896,102990.0,102980.0,0.96669903]
[1733371207044,7.73175896,102990.0,102980.0,0.96669903]
[1733371207278,7.72673896,102990.0,102980.0,0.98990271]
[1733371207730,7.62964396,102990.0,102980.0,1.01993555]
[1733371207898,7.45464395,102990.0,102980.0,0.98990271]
[1733371208241,7.45464395,102990.0,102980.0,0.98990266]
[1733371208650,7.35754895,102990.0,102980.0,0.85669898]
[1733371208852,7.35754895,102990.0,102980.0,0.95669898]
[1733371209054,7.25754895,102990.0,102980.0,0.85669898]
[1733371209255,7.25754895,102990.0,102980.0,0.95669898]
[1733371209459,7.21871095,102990.0,102980.0,0.95669898]
[1733371209666,7.05045609,102990.0,102980.0,0.98266936]
[1733371210088,6.93655175,102990.0,102980.0,1.01440892]
[1733371210298,6.78141952,102990.0,102980.0,0.12967605]
[1733371210548,6.73693002,102990.0,102980.0,0.17988028]
[1733371210761,6.70612958,102990.0,102980.0,0.17988028]
[1733371210972,6.68062657,102990.0,102980.0,0.17988028]
[1733371211184,6.66490657,102990.0,102980.0,0.17988028]
[1733371211404,6.43562534,102990.0,102980.0,0.17988028]
[1733371211615,6.21339777,102990.0,102980.0,0.1336359]
[1733371211821,6.1673715,102990.0,102980.0,0.13191815]
[1733371212028,6.15965744,102990.0,102980.0,0.13191815]
[1733371212237,6.15965744,102990.0,102980.0,0.25133915]
[1733371212238,6.08227344,102990.0,102980.0,0.25133915]
[1733371212444,6.07958086,102990.0,102980.0,0.22224456]
[1733371212661,5.98248586,102990.0,102980.0,0.22224456]
[1733371212869,5.98248586,102990.0,102980.0,0.20285267]
[1733371213092,5.80748585,102990.0,102980.0,0.20457073]
[1733371213307,5.80748585,102990.0,102980.0,0.22918977]
[1733371213514,5.72969816,102990.0,102980.0,0.22747171]
[1733371213720,5.71027916,102990.0,102980.0,0.22747171]
[1733371214577,5.63260316,102990.0,102980.0,0.22747171]
[1733371214807,5.63260316,102990.0,102980.0,0.20285267]
[1733371215022,5.63260316,102990.0,102980.0,0.20457092]
[1733371215462,5.63232221,102990.0,102980.0,0.20457092]
[1733371215671,5.63223872,102990.0,102980.0,0.18514992]
[1733371215875,5.63223872,102990.0,102980.0,0.18343167]
[1733371216093,5.63209882,102990.0,102980.0,0.18343167]
[1733371216523,5.63209882,102990.0,102980.0,0.20992348]
[1733371216524,5.62701082,102990.0,102980.0,0.20992348]
[1733371216732,5.62701082,102990.0,102980.0,0.24038354]
[1733371216934,5.62701082,102990.0,102980.0,0.23866559]
[1733371217138,5.62457715,102990.0,102980.0,0.23866559]
[1733371217354,5.44660476,102990.0,102980.0,0.23866559]
[1733371217568,5.3892585,102990.0,102980.0,0.23866559]
[1733371217778,5.2772215,102990.0,102980.0,0.23866559]
[1733371218192,5.22446992,102990.0,102980.0,0.23866559]
[1733371218420,5.19882903,102990.0,102980.0,0.27134475]
[1733371218658,5.17074939,102990.0,102980.0,0.27134475]
[1733371219092,5.07448909,102990.0,102980.0,0.27134475]
[1733371219330,4.96995438,102990.0,102980.0,0.27134475]
[1733371219535,4.80281106,102990.0,102980.0,0.27134475]
[1733371219750,4.65731813,102990.0,102980.0,0.37134475]
[1733371219964,4.59061787,102990.0,102980.0,0.37134475]
[1733371220186,4.20737534,102990.0,102980.0,0.37122061]
[1733371220418,3.39422647,102990.0,102980.0,0.34078894]
[1733371220647,3.10780245,102990.0,102980.0,0.38053839]
[1733371220851,3.04049749,102990.0,102980.0,0.38053839]
[1733371221063,2.71582851,102990.0,102980.0,0.34078894]
[1733371221268,2.24851363,102990.0,102980.0,0.28161797]
[1733371221482,1.98793312,102990.0,102980.0,0.29566892]
[1733371221714,1.93440905,102990.0,102980.0,0.29566892]
[1733371221981,1.86124642,102990.0,102980.0,0.29566892]
[1733371222214,1.72617932,102990.0,102980.0,0.26692681]
[1733371222436,1.49910397,102990.0,102980.0,0.26692681]
[1733371222665,1.44198944,102990.0,102980.0,0.26692681]
[1733371222908,1.44198944,102990.0,102980.0,0.31488511]
[1733371222909,0.4115789,102990.0,102980.0,0.31488511]
[1733371223122,0.005,103040.0,102980.0,0.31488511]
[1733371223123,0.19791922,103160.0,103000.0,0.07788917]
[1733371223348,0.12676053,103110.0,103020.0,0.02987586]
[1733371223555,0.0008681,103100.0,103030.0,0.0017163]
[1733371223972,0.0008681,103100.0,103020.0,0.02659216]
[1733371224187,1.5008681,103100.0,103030.0,0.0017163]
[1733371224623,1.50058715,103100.0,103030.0,0.0017163]
[1733371225088,1.50058715,103100.0,103060.0,0.02659216]
[1733371225303,1.50058715,103100.0,103080.0,0.02659216]
[1733371225519,0.1002632,103100.0,103080.0,0.02659216]
[1733371225791,0.2002632,103100.0,103090.0,0.00171639]
[1733371226001,0.2002632,103100.0,103080.0,0.02659216]
[1733371226247,0.19967605,103090.0,103080.0,0.02659216]
[1733371226471,0.22170794,103090.0,103080.0,0.02659216]
[1733371226707,0.1,103070.0,103060.0,0.03171679]
[1733371226937,0.32727605,103070.0,103060.0,0.03]
[1733371227169,0.22727605,103070.0,103060.0,0.03]
[1733371227611,0.22727605,103070.0,103060.0,0.03171704]
[1733371227827,0.32727605,103070.0,103060.0,0.03171704]
[1733371228059,0.05277663,103090.0,103060.0,0.03171704]
[1733371228276,0.15245268,103080.0,103060.0,0.03]
[1733371228724,0.05277663,103070.0,103060.0,0.03]
[1733371228944,0.15245268,103070.0,103060.0,0.03]
[1733371229371,0.15245268,103070.0,103060.0,0.03171697]
[1733371230489,0.09967605,103070.0,103060.0,0.03]
[1733371230716,0.00117528,103100.0,103060.0,0.0317171]
[1733371230938,0.05277663,103080.0,103070.0,0.00171656]
[1733371231145,0.15245268,103080.0,103060.0,0.03]
[1733371231555,0.15245268,103080.0,103070.0,0.00171686]
[1733371233072,0.10445267,103090.0,103070.0,0.00171686]
[1733371233288,0.00117528,103100.0,103080.0,0.03]
[1733371233517,0.00117528,103100.0,103090.0,0.00171629]
[1733371234416,0.00105794,103100.0,103090.0,0.00171629]
[1733371235070,0.00105794,103100.0,103090.0,0.07046329]